[Event "FIDE Women GP Monaco 2019"]
[Site "Monaco"]
[Date "2019.12.10"]
[Round "7.2"]
[White "Gunina, Valentina"]
[Black "Cramling, Pia"]
[Result "0-1"]
[ECO "E11"]
[WhiteElo "2492"]
[BlackElo "2461"]
[Annotator "ChessBase"]
[PlyCount "72"]
[EventDate "2019.12.03"]
[EventType "tourn"]
[EventCountry "MNC"]
[SourceTitle "playchess.com"]
[Source "ChessBase"]
[SourceQuality "1"]
[TimeControl "40/5400+30:1800+30"]

1. d4 {[%emt 0:00:00]} Nf6 {[%emt 0:00:00]} 2. c4 {[%emt 0:00:00]} e6 {[%emt 0:00:11]} 3. Nf3 {[%emt 0:00:00]} Bb4+ {[%emt 0:00:17]} 4. Bd2 {[%emt 0:00:37]} a5 {[%emt 0:00:14]} 5. g3 {[%emt 0:03:18]} d5 {[%emt 0:01:41]} 6. cxd5 exd5 {[%emt 0:00:43]} 7. Bg2 {[%emt 0:12:30]} O-O {[%emt 0:01:25]} 8. O-O {[%emt 0:00:10]} Re8 {[%emt 0:05:36]} 9. Nc3 {[%emt 0:03:46]} c6 {[%emt 0:05:20]} 10. a3 {[%emt 0:05:07]} Bd6 {[%emt 0:06:13]} 11. Qc2 {[%emt 0:06:33]} Nbd7 {[%emt 0:07:54]} 12. Rfe1 {[%emt 0:01:57]} h6 {[%emt 0:03:35]} 13. Nh4 {[%emt 0:05:22]} Nb6 {[%emt 0:03:46]} 14. e4 dxe4 {[%emt 0:02:32]} 15. Nxe4 {[%emt 0:05:41]} Nxe4 {[%emt 0:03:43]} 16. Rxe4 {[%emt 0:00:07]} Rxe4 {[%emt 0:01:46]} 17. Bxe4 {[%emt 0:05:07]} Be6 {[%emt 0:05:11]} 18. Re1 {[%emt 0:00:27]} Qf6 {[%emt 0:04:35]} 19. Bd3 {[%emt 0:09:22]} a4 {[%emt 0:04:23]} 20. Qd1 {[%emt 0:02:13]} Nd5 {[%emt 0:08:32]} 21. Bc1 {[%emt 0:13:08]} Nf4 {[%emt 0:14:43]} 22. Bxf4 {[%emt 0:03:54]} Bxf4 {[%emt 0:00:05]} 23. Bc2 {[%emt 0:00:26]} Bc7 {[%emt 0:01:11]} 24. Qd3 {[%emt 0:02:50]} g6 {[%emt 0:00:21]} 25. Qe3 {[%emt 0:00:46]} Bb6 {[%emt 0:04:33]} 26. Nxg6 {[%emt 0:07:34]} Bxd4 {[%emt 0:00:14]} 27. Qe2 {[%emt 0:00:06]} Bg4 {[%emt 0:06:02]} 28. Ne7+ {[%emt 0:01:05]} Kf8 {[%emt 0:00:36]} 29. Qd2 {[%emt 0:00:14]} Rd8 {[%emt 0:00:32]} 30. h3 {[%emt 0:10:33]} Be6 {[%emt 0:03:44]} 31. Ng6+ {[%emt 0:01:21]} fxg6 {[%emt 0:00:18]} 32. Qxh6+ {[%emt 0:00:02]} Kg8 {[%emt 0:00:58]} 33. Re2 {[%emt 0:00:47]} Bf7 {[%emt 0:00:45]} 34. Kg2 {[%emt 0:01:23]} Bc5 {[%emt 0:01:34]} 35. Bxa4 {[%emt 0:00:31]} Rd3 {[%emt 0:01:27]} 36. f4 Qd4 {[%emt 0:01:08]} 0-1

[Event "FIDE Women GP Monaco 2019"]
[Site "Monaco"]
[Date "2019.12.10"]
[Round "7.3"]
[White "Muzychuk, Mariya"]
[Black "Paehtz, Elisabeth"]
[Result "1-0"]
[ECO "D48"]
[WhiteElo "2559"]
[BlackElo "2475"]
[Annotator "ChessBase"]
[PlyCount "107"]
[EventDate "2019.12.03"]
[EventType "tourn"]
[EventCountry "MNC"]
[SourceTitle "playchess.com"]
[Source "ChessBase"]
[SourceQuality "1"]
[TimeControl "40/5400+30:1800+30"]

1. d4 {[%emt 0:00:00]} d5 {[%emt 0:00:00]} 2. c4 {[%emt 0:00:00]} c6 {[%emt 0:00:00]} 3. Nc3 {[%emt 0:00:00]} Nf6 {[%emt 0:00:00]} 4. e3 {[%emt 0:00:13]} e6 {[%emt 0:00:00]} 5. Nf3 {[%emt 0:00:28]} Nbd7 {[%emt 0:00:00]} 6. Bd3 {[%emt 0:02:46]} dxc4 {[%emt 0:00:00]} 7. Bxc4 {[%emt 0:00:03]} b5 {[%emt 0:00:02]} 8. Bd3 {[%emt 0:00:06]} a6 {[%emt 0:00:03]} 9. a4 {[%emt 0:03:57]} b4 {[%emt 0:11:41]} 10. Ne4 {[%emt 0:00:16]} Bb7 {[%emt 0:02:46]} 11. Nxf6+ {[%emt 0:04:54]} Nxf6 12. Qe2 {[%emt 0:00:36]} c5 {[%emt 0:01:45]} 13. dxc5 {[%emt 0:00:29]} Bxc5 {[%emt 0:15:26]} 14. e4 Nd7 {[%emt 0:00:06]} 15. O-O {[%emt 0:02:23]} O-O {[%emt 0:02:06]} 16. Bf4 {[%emt 0:02:11]} f6 {[%emt 0:05:59]} 17. Bc4 {[%emt 0:17:42]} Qe7 {[%emt 0:00:46]} 18. a5 {[%emt 0:05:15]} Kh8 {[%emt 0:03:44]} 19. Rfd1 {[%emt 0:04:11]} Rfe8 {[%emt 0:16:41]} 20. Rd3 {[%emt 0:03:27]} Nf8 {[%emt 0:01:31]} 21. b3 {[%emt 0:04:54]} Bc6 {[%emt 0:08:11]} 22. Be3 {[%emt 0:09:34]} Bxe3 {[%emt 0:07:18]} 23. Rxe3 {[%emt 0:01:52]} Qa7 {[%emt 0:02:27]} 24. e5 {[%emt 0:06:52]} f5 {[%emt 0:01:06]} 25. Ng5 {[%emt 0:02:09]} h6 {[%emt 0:03:16]} 26. Qh5 {[%emt 0:00:10]} Kg8 {[%emt 0:00:26]} 27. Nh3 {[%emt 0:00:20]} Rad8 {[%emt 0:05:58]} 28. Qxf5 {[%emt 0:07:13]} Qd4 {[%emt 0:01:50]} 29. Qb1 {[%emt 0:00:38]} Ng6 {[%emt 0:02:13]} 30. Bxa6 {[%emt 0:02:40]} Nxe5 {[%emt 0:01:34]} 31. Qe1 {[%emt 0:00:13]} Qg4 {[%emt 0:03:53]} 32. Rg3 {[%emt 0:00:16]} Qd4 {[%emt 0:00:20]} 33. Bf1 {[%emt 0:00:40]} Rf8 {[%emt 0:01:10]} 34. a6 {[%emt 0:00:39]} Kh8 {[%emt 0:00:19]} 35. Rc1 {[%emt 0:05:01]} Ba8 {[%emt 0:00:32]} 36. Rc7 {[%emt 0:01:53]} Rg8 {[%emt 0:01:35]} 37. Qe3 {[%emt 0:03:29]} g5 {[%emt 0:01:24]} 38. Qxd4 {[%emt 0:02:40]} Rxd4 {[%emt 0:00:04]} 39. f4 {[%emt 0:00:40]} Ng6 {[%emt 0:02:14]} 40. fxg5 {[%emt 0:01:20]} h5 {[%emt 0:00:26]} 41. Rd3 {[%emt 0:31:11]} Rdd8 {[%emt 0:02:52]} 42. a7 {[%emt 0:00:00]} Bd5 {[%emt 0:00:23]} 43. Rd4 {[%emt 0:00:00]} Rg7 {[%emt 0:00:19]} 44. Rxg7 {[%emt 0:00:00]} Kxg7 {[%emt 0:00:04]} 45. Rxb4 {[%emt 0:00:00]} Ra8 {[%emt 0:00:04]} 46. Ra4 {[%emt 0:00:00]} Bxb3 {[%emt 0:00:05]} 47. Ra3 {[%emt 0:00:00]} Bd5 {[%emt 0:00:04]} 48. Be2 {[%emt 0:00:00]} h4 {[%emt 0:01:04]} 49. Bf3 {[%emt 0:00:00]} Bxf3 {[%emt 0:00:09]} 50. gxf3 {[%emt 0:00:00]} e5 {[%emt 0:00:05]} 51. Nf2 {[%emt 0:00:00]} Nf4 {[%emt 0:00:10]} 52. Ne4 {[%emt 0:00:00]} Ne2+ {[%emt 0:00:17]} 53. Kg2 {[%emt 0:00:00]} Nd4 {[%emt 0:00:07]} 54. Kh3 {[%emt 0:00:00]} 1-0

[Event "FIDE Women GP Monaco 2019"]
[Site "Monaco"]
[Date "2019.12.10"]
[Round "7.4"]
[White "Muzychuk, Anna"]
[Black "Harika, Dronavalli"]
[Result "1/2-1/2"]
[ECO "B31"]
[WhiteElo "2537"]
[BlackElo "2518"]
[Annotator "ChessBase"]
[PlyCount "47"]
[EventDate "2019.12.03"]
[EventType "tourn"]
[EventCountry "MNC"]
[SourceTitle "playchess.com"]
[Source "ChessBase"]
[SourceQuality "1"]
[TimeControl "40/5400+30:1800+30"]

1. e4 {[%emt 0:00:00]} c5 {[%emt 0:00:00]} 2. Nf3 {[%emt 0:00:00]} Nc6 {[%emt 0:00:00]} 3. Bb5 {[%emt 0:00:00]} g6 {[%emt 0:00:00]} 4. Bxc6 {[%emt 0:00:00]} dxc6 {[%emt 0:00:39]} 5. d3 {[%emt 0:00:01]} Bg7 {[%emt 0:00:12]} 6. h3 {[%emt 0:00:08]} Qc7 {[%emt 0:00:59]} 7. Nc3 {[%emt 0:01:15]} e5 {[%emt 0:00:20]} 8. a3 {[%emt 0:04:21]} a5 {[%emt 0:02:43]} 9. O-O {[%emt 0:01:00]} Ne7 {[%emt 0:01:39]} 10. Be3 {[%emt 0:08:04]} b6 {[%emt 0:00:45]} 11. Qc1 {[%emt 0:13:49]} h6 12. Nd2 {[%emt 0:02:01]} f5 {[%emt 0:11:04]} 13. exf5 {[%emt 0:07:24]} Nxf5 {[%emt 0:04:14]} 14. Nce4 {[%emt 0:05:55]} O-O {[%emt 0:05:08]} 15. a4 {[%emt 0:01:17]} Be6 {[%emt 0:03:27]} 16. Nc4 {[%emt 0:02:34]} Rab8 {[%emt 0:06:09]} 17. c3 {[%emt 0:05:19]} g5 {[%emt 0:05:13]} 18. Qc2 {[%emt 0:02:29]} Qd7 {[%emt 0:04:20]} 19. Qe2 {[%emt 0:10:03]} Qc7 {[%emt 0:11:22]} 20. Qh5 {[%emt 0:06:05]} Bf7 {[%emt 0:11:18]} 21. Qg4 {[%emt 0:00:04]} Be6 {[%emt 0:02:35]} 22. Qh5 {[%emt 0:00:08]} Bf7 {[%emt 0:00:09]} 23. Qg4 {[%emt 0:00:05]} Be6 {[%emt 0:00:25]} 24. Qh5 {[%emt 0:00:16]} 1/2-1/2

[Event "FIDE Women GP Monaco 2019"]
[Site "Monaco"]
[Date "2019.12.11"]
[Round "8.1"]
[White "Dzagnidze, Nana"]
[Black "Kosteniuk, Alexandra"]
[Result "0-1"]
[ECO "A34"]
[WhiteElo "2520"]
[BlackElo "2483"]
[Annotator "ChessBase"]
[PlyCount "118"]
[EventDate "2019.12.03"]
[EventType "tourn"]
[EventCountry "MNC"]
[SourceTitle "playchess.com"]
[Source "ChessBase"]
[SourceQuality "1"]
[TimeControl "40/5400+30:1800+30"]

1. c4 {[%emt 0:00:00]} Nf6 {[%emt 0:00:00]} 2. Nc3 {[%emt 0:00:00]} c5 {[%emt 0:00:00]} 3. g3 {[%emt 0:02:03]} d5 {[%emt 0:00:11]} 4. cxd5 {[%emt 0:00:07]} Nxd5 {[%emt 0:00:04]} 5. Bg2 {[%emt 0:00:10]} Nc7 {[%emt 0:00:32]} 6. d3 {[%emt 0:04:26]} e5 {[%emt 0:02:57]} 7. Be3 {[%emt 0:06:17]} Be7 {[%emt 0:01:43]} 8. Rc1 {[%emt 0:02:58]} Nd7 {[%emt 0:05:22]} 9. Nf3 {[%emt 0:05:27]} O-O {[%emt 0:00:50]} 10. O-O {[%emt 0:00:20]} Rb8 {[%emt 0:04:27]} 11. Bh3 {[%emt 0:12:17]} f5 {[%emt 0:11:00]} 12. Qb3+ {[%emt 0:01:34]} Kh8 {[%emt 0:00:07]} 13. Nd5 {[%emt 0:00:35]} Nxd5 {[%emt 0:01:24]} 14. Qxd5 {[%emt 0:00:04]} b6 {[%emt 0:09:58]} 15. Nxe5 {[%emt 0:07:15]} Nxe5 {[%emt 0:00:07]} 16. Qxe5 {[%emt 0:00:04]} Bd6 {[%emt 0:00:30]} 17. Qd5 {[%emt 0:06:34]} Bb7 {[%emt 0:19:21]} 18. Qc4 {[%emt 0:00:22]} f4 {[%emt 0:00:09]} 19. Bd2 {[%emt 0:00:32]} Qe8 {[%emt 0:00:29]} 20. Bg4 {[%emt 0:30:37]} Qg6 {[%emt 0:03:08]} 21. Bf3 {[%emt 0:00:08]} Bxf3 {[%emt 0:02:36]} 22. exf3 {[%emt 0:00:01]} fxg3 {[%emt 0:03:47]} 23. fxg3 {[%emt 0:00:18]} Bxg3 {[%emt 0:00:15]} 24. Qe4 {[%emt 0:01:48]} Rf5 {[%emt 0:09:32]} 25. Qg4 {[%emt 0:00:11]} Be5 {[%emt 0:00:28]} 26. Qxg6 {[%emt 0:00:31]} hxg6 {[%emt 0:00:02]} 27. Bc3 {[%emt 0:05:29]} Rd8 {[%emt 0:00:20]} 28. f4 {[%emt 0:04:17]} Bxf4 {[%emt 0:01:23]} 29. Rce1 {[%emt 0:00:46]} Rxd3 {[%emt 0:03:39]} 30. Kg2 {[%emt 0:04:42]} Be3 {[%emt 0:03:36]} 31. Rd1 {[%emt 0:00:32]} c4 {[%emt 0:00:16]} 32. Rfe1 {[%emt 0:00:45]} Bg5 {[%emt 0:01:33]} 33. Re8+ {[%emt 0:01:46]} Kh7 {[%emt 0:00:04]} 34. Rde1 {[%emt 0:00:06]} Bd2 {[%emt 0:03:43]} 35. Bxd2 {[%emt 0:01:12]} Rxd2+ {[%emt 0:00:02]} 36. R1e2 {[%emt 0:00:07]} Rxe2+ {[%emt 0:01:31]} 37. Rxe2 {[%emt 0:00:02]} b5 {[%emt 0:00:18]} 38. Rc2 {[%emt 0:02:37]} Rf4 {[%emt 0:01:25]} 39. Kg3 {[%emt 0:01:08]} g5 {[%emt 0:00:16]} 40. Rd2 {[%emt 0:00:09]} Kg6 {[%emt 0:04:02]} 41. Rd7 {[%emt 0:31:23]} a6 {[%emt 0:33:02]} 42. Rc7 {[%emt 0:00:00]} Rd4 {[%emt 0:00:00]} 43. a4 {[%emt 0:00:00]} c3 {[%emt 0:00:00]} 44. Rxc3 {[%emt 0:00:00]} Rxa4 {[%emt 0:00:00]} 45. Rc6+ {[%emt 0:00:00]} Kh5 {[%emt 0:00:00]} 46. Rb6 {[%emt 0:00:00]} Rb4 {[%emt 0:00:00]} 47. Rxa6 {[%emt 0:00:00]} Rb3+ {[%emt 0:00:00]} 48. Kg2 {[%emt 0:00:00]} Rxb2+ {[%emt 0:00:00]} 49. Kg3 {[%emt 0:00:00]} Rb3+ {[%emt 0:00:00]} 50. Kg2 {[%emt 0:00:00]} Kg4 {[%emt 0:00:00]} 51. Rg6 {[%emt 0:00:00]} Rb2+ {[%emt 0:00:00]} 52. Kg1 {[%emt 0:00:00]} Kf3 {[%emt 0:00:00]} 53. h3 {[%emt 0:00:00]} b4 {[%emt 0:00:00]} 54. Rxg5 {[%emt 0:00:00]} b3 {[%emt 0:00:00]} 55. Rb5 {[%emt 0:00:07]} Kg3 {[%emt 0:00:00]} 56. Kf1 {[%emt 0:01:30]} Rb1+ {[%emt 0:00:00]} 57. Ke2 {[%emt 0:00:10]} b2 {[%emt 0:00:00]} 58. Rb3+ {[%emt 0:00:08]} Kh2 {[%emt 0:00:00]} 59. Kd3 {[%emt 0:02:20]} Rd1+ {[%emt 0:00:00] Kd4} 0-1

[Event "FIDE Women GP Monaco 2019"]
[Site "Monaco"]
[Date "2019.12.11"]
[Round "8.2"]
[White "Zhao, Xue"]
[Black "Lagno, Kateryna"]
[Result "1/2-1/2"]
[ECO "D71"]
[WhiteElo "2485"]
[BlackElo "2547"]
[Annotator "ChessBase"]
[PlyCount "103"]
[EventDate "2019.12.03"]
[EventType "tourn"]
[EventCountry "MNC"]
[SourceTitle "playchess.com"]
[Source "ChessBase"]
[SourceQuality "1"]
[TimeControl "40/5400+30:1800+30"]

1. d4 {[%emt 0:00:00]} Nf6 {[%emt 0:00:00]} 2. c4 {[%emt 0:00:00]} g6 {[%emt 0:00:00]} 3. g3 {[%emt 0:00:00]} Bg7 {[%emt 0:00:00]} 4. Bg2 {[%emt 0:00:00]} O-O {[%emt 0:00:09]} 5. Nc3 {[%emt 0:01:23]} Nc6 {[%emt 0:00:19]} 6. Nf3 {[%emt 0:00:38]} d5 {[%emt 0:00:17]} 7. cxd5 {[%emt 0:01:19]} Nxd5 {[%emt 0:00:04]} 8. O-O {[%emt 0:00:24]} e5 {[%emt 0:00:19]} 9. Nxd5 {[%emt 0:10:52]} e4 {[%emt 0:00:37]} 10. Ne5 {[%emt 0:06:05]} Qxd5 {[%emt 0:00:49]} 11. Nxc6 {[%emt 0:00:05]} Qxc6 {[%emt 0:00:04]} 12. Bf4 {[%emt 0:04:12]} Bg4 {[%emt 0:00:40]} 13. h3 {[%emt 0:00:49]} Be6 {[%emt 0:00:12]} 14. Rc1 {[%emt 0:08:58]} Qd5 {[%emt 0:01:35]} 15. Bxc7 {[%emt 0:04:18]} Bxd4 {[%emt 0:26:18]} 16. Qa4 {[%emt 0:12:26]} b5 {[%emt 0:15:49]} 17. Qb4 {[%emt 0:01:44]} a5 {[%emt 0:01:04]} 18. Bxa5 {[%emt 0:00:30]} Qxa2 {[%emt 0:21:40]} 19. Qxd4 {[%emt 0:00:52]} Rxa5 {[%emt 0:00:03]} 20. Rc5 {[%emt 0:00:31]} Ra4 {[%emt 0:05:00]} 21. Qe5 {[%emt 0:03:19]} Rb4 {[%emt 0:00:05]} 22. Rxb5 {[%emt 0:01:36]} f6 {[%emt 0:08:41]} 23. Qc5 {[%emt 0:00:04]} Rxb2 {[%emt 0:00:04]} 24. Rxb2 {[%emt 0:04:13]} Qxb2 {[%emt 0:00:04]} 25. Qd6 {[%emt 0:02:59]} Bc4 {[%emt 0:01:25]} 26. Bxe4 {[%emt 0:00:21]} Qxe2 {[%emt 0:00:08]} 27. Bd5+ {[%emt 0:01:15]} Bxd5 {[%emt 0:00:04]} 28. Qxd5+ {[%emt 0:00:07]} Rf7 {[%emt 0:00:29]} 29. Rb1 {[%emt 0:00:45]} Kg7 {[%emt 0:00:07]} 30. Rb8 {[%emt 0:01:27]} Qe1+ {[%emt 0:01:17]} 31. Kg2 {[%emt 0:00:05]} Qe7 {[%emt 0:00:28]} 32. h4 {[%emt 0:00:42]} h5 {[%emt 0:00:55]} 33. Qc6 {[%emt 0:00:38]} Kh6 {[%emt 0:08:17]} 34. Qc8 {[%emt 0:02:06]} Qe4+ {[%emt 0:00:33]} 35. Kh2 {[%emt 0:00:33]} Qf3 {[%emt 0:02:54]} 36. Qh8+ {[%emt 0:06:34]} Rh7 {[%emt 0:00:01]} 37. Qf8+ {[%emt 0:00:08]} Rg7 {[%emt 0:00:02]} 38. Qc5 {[%emt 0:03:48]} Kh7 {[%emt 0:01:18]} 39. Qc2 {[%emt 0:03:47]} Re7 {[%emt 0:00:41]} 40. Qa2 {[%emt 0:00:43]} Rg7 {[%emt 0:03:52]} 41. Rf8 {[%emt 0:36:08]} Re7 {[%emt 0:08:09]} 42. Rd8 {[%emt 0:00:00]} Rg7 {[%emt 0:03:18]} 43. Kg1 {[%emt 0:00:00]} Qe4 {[%emt 0:01:31]} 44. Qb3 {[%emt 0:00:00]} Qe1+ {[%emt 0:01:09]} 45. Kg2 {[%emt 0:00:00]} Qe7 {[%emt 0:01:25]} 46. Qd3 {[%emt 0:00:00]} Qb7+ {[%emt 0:00:27]} 47. Kh2 {[%emt 0:00:00]} Qb6 {[%emt 0:00:29]} 48. Kg1 {[%emt 0:00:00]} Re7 {[%emt 0:01:10]} 49. Qd5 {[%emt 0:00:00]} Qe6 {[%emt 0:00:34]} 50. Qd4 {[%emt 0:00:00]} Qe5 {[%emt 0:00:19]} 51. Qb6 {[%emt 0:00:00]} Qc7 {[%emt 0:00:23]} 52. Qxc7 1/2-1/2

[Event "FIDE Women GP Monaco 2019"]
[Site "Monaco"]
[Date "2019.12.11"]
[Round "8.3"]
[White "Harika, Dronavalli"]
[Black "Koneru, Humpy"]
[Result "1/2-1/2"]
[ECO "C45"]
[WhiteElo "2518"]
[BlackElo "2574"]
[Annotator "ChessBase"]
[PlyCount "61"]
[EventDate "2019.12.03"]
[EventType "tourn"]
[EventCountry "MNC"]
[SourceTitle "playchess.com"]
[Source "ChessBase"]
[SourceQuality "1"]
[TimeControl "40/5400+30:1800+30"]

1. e4 {[%emt 0:00:00]} e5 {[%emt 0:00:00]} 2. Nf3 {[%emt 0:00:00]} Nc6 {[%emt 0:00:00]} 3. d4 {[%emt 0:00:00]} exd4 {[%emt 0:00:00]} 4. Nxd4 {[%emt 0:00:00]} Bc5 {[%emt 0:00:15]} 5. Nb3 {[%emt 0:00:27]} Bb6 {[%emt 0:00:18]} 6. Qe2 {[%emt 0:00:18]} a5 {[%emt 0:09:01]} 7. a4 {[%emt 0:01:15]} Nge7 {[%emt 0:07:37]} 8. Nc3 {[%emt 0:09:16]} O-O {[%emt 0:01:12]} 9. Be3 {[%emt 0:00:16]} Bxe3 {[%emt 0:00:45]} 10. Qxe3 {[%emt 0:00:06]} d6 {[%emt 0:07:27]} 11. O-O-O {[%emt 0:01:16]} f5 {[%emt 0:08:12]} 12. f4 {[%emt 0:03:47]} fxe4 {[%emt 0:02:18]} 13. g3 {[%emt 0:04:38]} Nb4 {[%emt 0:21:27]} 14. Bg2 {[%emt 0:03:36]} d5 {[%emt 0:03:43]} 15. Bxe4 {[%emt 0:06:19]} c6 {[%emt 0:00:03]} 16. Rhe1 {[%emt 0:02:41]} Nf5 {[%emt 0:04:47]} 17. Bxf5 {[%emt 0:12:10]} Bxf5 {[%emt 0:00:02]} 18. Nd4 {[%emt 0:00:06]} Qd7 {[%emt 0:00:16]} 19. Nxf5 {[%emt 0:05:06]} Qxf5 {[%emt 0:00:03]} 20. Qe6+ {[%emt 0:00:06]} Qxe6 {[%emt 0:00:22]} 21. Rxe6 {[%emt 0:00:06]} Rfe8 {[%emt 0:03:36]} 22. Rde1 {[%emt 0:01:15]} Kf7 {[%emt 0:02:09]} 23. R6e2 {[%emt 0:03:55]} Rxe2 {[%emt 0:02:00]} 24. Rxe2 {[%emt 0:00:05]} Rd8 {[%emt 0:04:21]} 25. Nd1 {[%emt 0:03:44]} Na6 {[%emt 0:01:14]} 26. Nf2 {[%emt 0:00:59]} Nc5 {[%emt 0:00:18]} 27. b3 {[%emt 0:04:10]} Re8 {[%emt 0:05:50]} 28. Rxe8 Kxe8 29. Kd2 {[%emt 0:04:21]} Ke7 {[%emt 0:01:05]} 30. Nd3 Nd7 31. Ke3 {[%emt 0:02:18]} 1/2-1/2

[Event "FIDE Women GP Monaco 2019"]
[Site "Monaco"]
[Date "2019.12.11"]
[Round "8.4"]
[White "Paehtz, Elisabeth"]
[Black "Muzychuk, Anna"]
[Result "1/2-1/2"]
[ECO "C89"]
[WhiteElo "2475"]
[BlackElo "2537"]
[Annotator "ChessBase"]
[PlyCount "54"]
[EventDate "2019.12.03"]
[EventType "tourn"]
[EventCountry "MNC"]
[SourceTitle "playchess.com"]
[Source "ChessBase"]
[SourceQuality "1"]
[TimeControl "40/5400+30:1800+30"]

1. e4 {[%emt 0:00:00]} e5 {[%emt 0:00:00]} 2. Nf3 {[%emt 0:00:00]} Nc6 {[%emt 0:00:00]} 3. Bb5 {[%emt 0:00:00]} a6 {[%emt 0:00:01]} 4. Ba4 {[%emt 0:00:00]} Nf6 {[%emt 0:00:10]} 5. O-O {[%emt 0:00:00]} Be7 {[%emt 0:00:19]} 6. Re1 {[%emt 0:01:50]} b5 {[%emt 0:00:13]} 7. Bb3 {[%emt 0:00:04]} O-O {[%emt 0:00:14]} 8. c3 {[%emt 0:05:10]} d5 {[%emt 0:00:42]} 9. exd5 {[%emt 0:00:37]} Nxd5 {[%emt 0:00:07]} 10. Nxe5 {[%emt 0:00:03]} Nxe5 {[%emt 0:00:08]} 11. Rxe5 {[%emt 0:00:03]} c6 {[%emt 0:00:12]} 12. d3 {[%emt 0:00:37]} Bd6 {[%emt 0:00:43]} 13. Re1 {[%emt 0:00:11]} Bf5 {[%emt 0:01:12]} 14. Qf3 {[%emt 0:01:08]} Qf6 {[%emt 0:04:19]} 15. Bxd5 {[%emt 0:09:50]} cxd5 {[%emt 0:00:26]} 16. Bf4 {[%emt 0:00:27]} Bxf4 {[%emt 0:00:53]} 17. Qxf4 {[%emt 0:00:04]} d4 {[%emt 0:00:27]} 18. cxd4 {[%emt 0:01:24]} Rad8 {[%emt 0:03:35]} 19. Nc3 {[%emt 0:02:34]} Rxd4 {[%emt 0:08:28]} 20. Ne4 {[%emt 0:00:22]} Bxe4 {[%emt 0:01:48]} 21. Qxf6 {[%emt 0:00:07]} gxf6 {[%emt 0:00:06]} 22. Rxe4 {[%emt 0:01:06]} Rxd3 {[%emt 0:04:57]} 23. Rg4+ {[%emt 0:00:47]} Kh8 {[%emt 0:00:10]} 24. Rf4 {[%emt 0:00:04]} Kg7 {[%emt 0:01:27]} 25. Rg4+ {[%emt 0:00:11]} Kh8 {[%emt 0:00:19]} 26. Rf4 {[%emt 0:00:13]} Kg7 {[%emt 0:00:06]} 27. Rg4+ {[%emt 0:00:07]} Kh8 {[%emt 0:00:08]} 1/2-1/2